[Event "Early-Titled-Tuesday-Blitz-November-28-2023"]
[Site "Chess.com"]
[Date "2023.11.28"]
[Round "2"]
[White "GKARU"]
[Black "Chessdude1987"]
[Result "1-0"]
[WhiteElo "2529"]
[BlackElo "2322"]
[TimeControl "180+1"]
[EndTime "8:17:29 PST"]
[Termination "GKARU won by checkmate"]

1. d4 {[%clk 0:03:00.9]} 1... e6 {[%clk 0:02:59.6]} 2. Nf3 {[%clk 0:03:01.4]}
2... f5 {[%clk 0:02:59.3]} 3. g3 {[%clk 0:03:00.7]} 3... Nf6 {[%clk 0:02:59.7]}
4. Bg2 {[%clk 0:03:01.6]} 4... Be7 {[%clk 0:02:59.8]} 5. O-O {[%clk 0:03:02.5]}
5... O-O {[%clk 0:03:00.2]} 6. c4 {[%clk 0:03:03]} 6... d6 {[%clk 0:03:00.7]} 7.
Nc3 {[%clk 0:03:03.3]} 7... Ne4 {[%clk 0:03:01.3]} 8. Qb3 {[%clk 0:03:03]} 8...
Nxc3 {[%clk 0:03:00.6]} 9. bxc3 {[%clk 0:03:03]} 9... c5 {[%clk 0:02:51.2]} 10.
a4 {[%clk 0:03:01.3]} 10... Nc6 {[%clk 0:02:48.5]} 11. Rd1 {[%clk 0:03:00.6]}
11... Qc7 {[%clk 0:02:37.2]} 12. Bf4 {[%clk 0:02:56.2]} 12... e5 {[%clk
0:02:29.9]} 13. dxe5 {[%clk 0:02:54.1]} 13... dxe5 {[%clk 0:02:29.9]} 14. Be3
{[%clk 0:02:54.6]} 14... f4 {[%clk 0:02:21.8]} 15. Bc1 {[%clk 0:02:44.7]} 15...
Be6 {[%clk 0:02:15]} 16. Nd2 {[%clk 0:02:44.2]} 16... Na5 {[%clk 0:01:45.5]} 17.
Qa2 {[%clk 0:02:42.2]} 17... Kh8 {[%clk 0:01:33.3]} 18. Bd5 {[%clk 0:02:36]}
18... Bg4 {[%clk 0:01:27.3]} 19. f3 {[%clk 0:02:34.5]} 19... Bd7 {[%clk
0:01:17.6]} 20. Ne4 {[%clk 0:02:33.9]} 20... Rad8 {[%clk 0:01:15.9]} 21. Rb1
{[%clk 0:02:33.2]} 21... b6 {[%clk 0:01:14.6]} 22. Kg2 {[%clk 0:02:32.8]} 22...
g5 {[%clk 0:00:52.8]} 23. g4 {[%clk 0:02:11.8]} 23... h5 {[%clk 0:00:41.7]} 24.
h3 {[%clk 0:02:09.9]} 24... Nb7 {[%clk 0:00:28.4]} 25. Bd2 {[%clk 0:01:51.8]}
25... Nd6 {[%clk 0:00:27]} 26. Be1 {[%clk 0:01:45.9]} 26... Nf7 {[%clk
0:00:18.8]} 27. a5 {[%clk 0:01:42.9]} 27... Nh6 {[%clk 0:00:17.4]} 28. Bf2
{[%clk 0:01:36.4]} 28... Kg7 {[%clk 0:00:16.5]} 29. Rh1 {[%clk 0:01:36.1]} 29...
Rh8 {[%clk 0:00:12.5]} 30. Qb3 {[%clk 0:01:33.4]} 30... hxg4 {[%clk 0:00:12.5]}
31. hxg4 {[%clk 0:01:32.6]} 31... Nxg4 {[%clk 0:00:12.8]} 32. fxg4 {[%clk
0:01:32.1]} 32... Bxg4 {[%clk 0:00:12.3]} 33. axb6 {[%clk 0:01:30.6]} 33... axb6
{[%clk 0:00:10.4]} 34. Qxb6 {[%clk 0:01:29.5]} 34... Qxb6 {[%clk 0:00:10.1]} 35.
Rxb6 {[%clk 0:01:30.1]} 35... Rxh1 {[%clk 0:00:09.6]} 36. Kxh1 {[%clk
0:01:29.9]} 36... Bxe2 {[%clk 0:00:10.1]} 37. Rb7 {[%clk 0:01:29.5]} 37... Kf8
{[%clk 0:00:08.4]} 38. Nxc5 {[%clk 0:01:12.8]} 38... Rxd5 {[%clk 0:00:01.4]} 39.
cxd5 {[%clk 0:01:04.6]} 39... Bf3+ {[%clk 0:00:01.8]} 40. Kg1 {[%clk 0:01:05.1]}
40... Bxd5 {[%clk 0:00:02.1]} 41. Rd7 {[%clk 0:01:03]} 41... Bc6 {[%clk
0:00:01.3]} 42. Rc7 {[%clk 0:01:03.5]} 42... Bf3 {[%clk 0:00:01.8]} 43. Ne6+
{[%clk 0:00:55.8]} 43... Ke8 {[%clk 0:00:01.8]} 44. Bc5 {[%clk 0:00:53.4]} 44...
g4 {[%clk 0:00:01.9]} 45. Rxe7# {[%clk 0:00:52.8]} 1-0

[Event "Early-Titled-Tuesday-Blitz-November-28-2023"]
[Site "Chess.com"]
[Date "2023.11.28"]
[Round "2"]
[White "ChessRespected"]
[Black "A-Fier"]
[Result "0-1"]
[WhiteElo "2523"]
[BlackElo "2750"]
[TimeControl "180+1"]
[EndTime "8:17:33 PST"]
[Termination "A-Fier won on time"]

1. d4 {[%clk 0:03:00.9]} 1... Nf6 {[%clk 0:02:59.5]} 2. Nf3 {[%clk 0:03:00.8]}
2... g6 {[%clk 0:02:56.5]} 3. g3 {[%clk 0:02:59.4]} 3... Bg7 {[%clk 0:02:56.8]}
4. Bg2 {[%clk 0:02:59.1]} 4... O-O {[%clk 0:02:56.9]} 5. c4 {[%clk 0:02:59.3]}
5... d6 {[%clk 0:02:57.3]} 6. Nc3 {[%clk 0:02:59.3]} 6... Nc6 {[%clk 0:02:57.9]}
7. d5 {[%clk 0:02:59.4]} 7... Na5 {[%clk 0:02:57.3]} 8. b3 {[%clk 0:02:57.3]}
8... c5 {[%clk 0:02:57.1]} 9. Bb2 {[%clk 0:02:55.9]} 9... a6 {[%clk 0:02:57.2]}
10. O-O {[%clk 0:02:50.4]} 10... Rb8 {[%clk 0:02:57.5]} 11. a4 {[%clk
0:02:50.4]} 11... e6 {[%clk 0:02:57.4]} 12. dxe6 {[%clk 0:02:45.7]} 12... Bxe6
{[%clk 0:02:57.2]} 13. Ng5 {[%clk 0:02:43.5]} 13... Nc6 {[%clk 0:02:54.4]} 14.
e3 {[%clk 0:02:21]} 14... Qe7 {[%clk 0:02:52.1]} 15. Qd2 {[%clk 0:02:16.4]}
15... Na5 {[%clk 0:02:50.7]} 16. Qc2 {[%clk 0:02:14.9]} 16... Nc6 {[%clk
0:02:50.3]} 17. Rad1 {[%clk 0:02:11.9]} 17... Nd7 {[%clk 0:02:48]} 18. h4 {[%clk
0:02:03.3]} 18... Rbd8 {[%clk 0:02:42.8]} 19. Nce4 {[%clk 0:01:55.9]} 19... Nde5
{[%clk 0:02:40.1]} 20. h5 {[%clk 0:01:45.7]} 20... Nb4 {[%clk 0:02:32.9]} 21.
Qb1 {[%clk 0:01:43.1]} 21... f5 {[%clk 0:02:26.9]} 22. Nxe6 {[%clk 0:01:38.8]}
22... Qxe6 {[%clk 0:02:27.5]} 23. Nc3 {[%clk 0:01:32.4]} 23... Kh8 {[%clk
0:02:15.3]} 24. hxg6 {[%clk 0:01:29.8]} 24... Qxg6 {[%clk 0:02:14.4]} 25. Bxb7
{[%clk 0:01:26.5]} 25... h5 {[%clk 0:02:09.1]} 26. Bg2 {[%clk 0:01:25.6]} 26...
h4 {[%clk 0:02:08.7]} 27. Nd5 {[%clk 0:01:20.9]} 27... hxg3 {[%clk 0:02:07.5]}
28. f4 {[%clk 0:01:18.2]} 28... Qh5 {[%clk 0:02:04.8]} 29. Rfe1 {[%clk
0:01:17.9]} 29... Qh2+ {[%clk 0:01:45.5]} 30. Kf1 {[%clk 0:01:16.9]} 30... Nxd5
{[%clk 0:01:46.4]} 31. cxd5 {[%clk 0:01:11.4]} 31... Ng6 {[%clk 0:01:46.2]} 32.
Bxg7+ {[%clk 0:01:11.1]} 32... Kxg7 {[%clk 0:01:46.6]} 33. b4 {[%clk 0:01:11.5]}
33... Nh4 {[%clk 0:01:45.5]} 34. Qb2+ {[%clk 0:01:07.7]} 34... Kg6 {[%clk
0:01:45.8]} 35. bxc5 {[%clk 0:01:06]} 35... Rb8 {[%clk 0:01:44.3]} 36. Qc2
{[%clk 0:01:04.1]} 36... dxc5 {[%clk 0:01:42.4]} 37. e4 {[%clk 0:01:01.5]} 37...
fxe4 {[%clk 0:01:37.2]} 38. Bxe4+ {[%clk 0:01:01.5]} 38... Kh5 {[%clk
0:01:36.9]} 39. Qe2+ {[%clk 0:00:48.9]} 39... Qxe2+ {[%clk 0:01:35.4]} 40. Kxe2
{[%clk 0:00:49.1]} 40... Rxf4 {[%clk 0:01:35.1]} 41. Ke3 {[%clk 0:00:47.4]}
41... Kg4 {[%clk 0:01:29.9]} 42. Rf1 {[%clk 0:00:41.2]} 42... Rb3+ {[%clk
0:01:21.4]} 43. Bd3 {[%clk 0:00:38]} 43... Rxf1 {[%clk 0:01:18.9]} 44. Rxf1
{[%clk 0:00:36.8]} 44... g2 {[%clk 0:01:19]} 45. Rg1 {[%clk 0:00:32.8]} 45... c4
{[%clk 0:01:18.2]} 46. Kd4 {[%clk 0:00:21.2]} 46... cxd3 {[%clk 0:01:12.9]} 47.
Kc4 {[%clk 0:00:17.7]} 47... Rb8 {[%clk 0:01:09.8]} 48. Kxd3 {[%clk 0:00:17.2]}
48... Kg3 {[%clk 0:01:10.1]} 49. Ke4 {[%clk 0:00:16.3]} 49... Re8+ {[%clk
0:01:07]} 50. Kd3 {[%clk 0:00:15.2]} 50... Nf3 {[%clk 0:01:07.5]} 0-1

[Event "Early-Titled-Tuesday-Blitz-November-28-2023"]
[Site "Chess.com"]
[Date "2023.11.28"]
[Round "2"]
[White "Gnechko_Ruslan"]
[Black "igorkovalenko"]
[Result "0-1"]
[WhiteElo "2407"]
[BlackElo "2901"]
[TimeControl "180+1"]
[EndTime "8:17:34 PST"]
[Termination "igorkovalenko won by resignation"]

1. d4 {[%clk 0:03:00.9]} 1... Nf6 {[%clk 0:02:57.2]} 2. Nf3 {[%clk 0:03:00.6]}
2... d5 {[%clk 0:02:55.9]} 3. c4 {[%clk 0:02:59.2]} 3... e6 {[%clk 0:02:55.6]}
4. Nc3 {[%clk 0:02:58.9]} 4... Nbd7 {[%clk 0:02:54.7]} 5. cxd5 {[%clk
0:02:58.6]} 5... exd5 {[%clk 0:02:55.6]} 6. Bg5 {[%clk 0:02:58.4]} 6... c6
{[%clk 0:02:56]} 7. e3 {[%clk 0:02:58.4]} 7... Be7 {[%clk 0:02:56.5]} 8. Bd3
{[%clk 0:02:57.9]} 8... h6 {[%clk 0:02:56.7]} 9. Bh4 {[%clk 0:02:57.4]} 9... O-O
{[%clk 0:02:55.9]} 10. O-O {[%clk 0:02:56.7]} 10... Re8 {[%clk 0:02:56.5]} 11.
Qc2 {[%clk 0:02:50]} 11... a5 {[%clk 0:02:56.2]} 12. Bg3 {[%clk 0:02:32.1]}
12... Nh5 {[%clk 0:02:50]} 13. Be5 {[%clk 0:02:30.8]} 13... Nxe5 {[%clk
0:02:09.6]} 14. dxe5 {[%clk 0:02:22.4]} 14... Bg4 {[%clk 0:02:05.4]} 15. Bh7+
{[%clk 0:02:07.4]} 15... Kh8 {[%clk 0:02:04.8]} 16. Bf5 {[%clk 0:02:07.8]} 16...
Bxf3 {[%clk 0:02:02.9]} 17. gxf3 {[%clk 0:02:08.7]} 17... Bb4 {[%clk 0:02:01]}
18. f4 {[%clk 0:02:07.3]} 18... Bxc3 {[%clk 0:01:55.5]} 19. bxc3 {[%clk
0:02:03.4]} 19... Qh4 {[%clk 0:01:55.9]} 20. Qe2 {[%clk 0:01:58.9]} 20... g6
{[%clk 0:01:54.9]} 21. Qg4 {[%clk 0:01:38.7]} 21... Qxg4+ {[%clk 0:01:44.6]} 22.
Bxg4 {[%clk 0:01:38.2]} 22... Ng7 {[%clk 0:01:45.2]} 23. a4 {[%clk 0:01:37.8]}
23... Re7 {[%clk 0:01:44.3]} 24. Rab1 {[%clk 0:01:37.6]} 24... Ne8 {[%clk
0:01:42.8]} 25. Rb6 {[%clk 0:01:35.1]} 25... f6 {[%clk 0:01:43]} 26. exf6 {[%clk
0:01:29.6]} 26... Nxf6 {[%clk 0:01:43]} 27. Bf3 {[%clk 0:01:19.4]} 27... Rd8
{[%clk 0:01:39]} 28. Rfb1 {[%clk 0:01:15.3]} 28... Rdd7 {[%clk 0:01:39.3]} 29.
Kg2 {[%clk 0:01:10.4]} 29... Kg7 {[%clk 0:01:39.2]} 30. h3 {[%clk 0:01:02.7]}
30... Ne8 {[%clk 0:01:32.4]} 31. Bg4 {[%clk 0:01:01.4]} 31... Rc7 {[%clk
0:01:32.4]} 32. Be2 {[%clk 0:00:47.2]} 32... Nd6 {[%clk 0:01:32.4]} 33. Bd3
{[%clk 0:00:47.8]} 33... Kf6 {[%clk 0:01:31.5]} 34. R6b2 {[%clk 0:00:41.1]}
34... g5 {[%clk 0:01:28.4]} 35. fxg5+ {[%clk 0:00:40.7]} 35... hxg5 {[%clk
0:01:28.9]} 36. Rc1 {[%clk 0:00:35.1]} 36... Re5 {[%clk 0:01:27.2]} 37. c4
{[%clk 0:00:34.7]} 37... dxc4 {[%clk 0:01:27.3]} 38. Bxc4 {[%clk 0:00:35.6]}
38... Rc5 {[%clk 0:01:27.7]} 39. Rbc2 {[%clk 0:00:34.3]} 39... b5 {[%clk
0:01:25.8]} 40. Bb3 {[%clk 0:00:30.5]} 40... Rxc2 {[%clk 0:01:25.8]} 41. Rxc2
{[%clk 0:00:31.4]} 41... b4 {[%clk 0:01:19.7]} 42. Rc5 {[%clk 0:00:30.3]} 42...
Nb7 {[%clk 0:01:19.8]} 43. Rc2 {[%clk 0:00:22.1]} 43... c5 {[%clk 0:01:20.2]}
44. Bd5 {[%clk 0:00:22.8]} 44... Nd6 {[%clk 0:01:20]} 45. e4 {[%clk 0:00:22.7]}
45... c4 {[%clk 0:01:19.3]} 46. h4 {[%clk 0:00:18.2]} 46... c3 {[%clk
0:01:17.7]} 47. hxg5+ {[%clk 0:00:18]} 47... Kxg5 {[%clk 0:01:18.6]} 48. Kg3
{[%clk 0:00:18.7]} 48... Nc4 {[%clk 0:01:15.6]} 49. f4+ {[%clk 0:00:18.5]} 49...
Kf6 {[%clk 0:01:15.7]} 50. e5+ {[%clk 0:00:18.7]} 50... Kf5 {[%clk 0:01:15.8]}
51. Kf3 {[%clk 0:00:18.1]} 51... Nd2+ {[%clk 0:01:12]} 52. Ke3 {[%clk
0:00:17.4]} 52... b3 {[%clk 0:01:08.9]} 53. Be4+ {[%clk 0:00:12.5]} 53... Nxe4
{[%clk 0:01:07.7]} 0-1

[Event "Early-Titled-Tuesday-Blitz-November-28-2023"]
[Site "Chess.com"]
[Date "2023.11.28"]
[Round "2"]
[White "kuli4ik"]
[Black "Journey_to_GrandMaster_YT"]
[Result "1-0"]
[WhiteElo "2861"]
[BlackElo "2561"]
[TimeControl "180+1"]
[EndTime "8:17:37 PST"]
[Termination "kuli4ik won by checkmate"]

1. Nf3 {[%clk 0:02:59.2]} 1... d6 {[%clk 0:03:00.9]} 2. d4 {[%clk 0:02:56.8]}
2... Nf6 {[%clk 0:03:01.8]} 3. g3 {[%clk 0:02:56]} 3... Nbd7 {[%clk 0:03:02.4]}
4. Bg2 {[%clk 0:02:56]} 4... e5 {[%clk 0:03:03.3]} 5. O-O {[%clk 0:02:56]} 5...
e4 {[%clk 0:03:03.7]} 6. Nfd2 {[%clk 0:02:53.8]} 6... d5 {[%clk 0:03:04.4]} 7.
c4 {[%clk 0:02:54.3]} 7... c6 {[%clk 0:03:04.6]} 8. Nc3 {[%clk 0:02:54.7]} 8...
Bd6 {[%clk 0:02:54.7]} 9. Qb3 {[%clk 0:02:53.8]} 9... Qb6 {[%clk 0:02:48.1]} 10.
c5 {[%clk 0:02:41.8]} 10... Qxb3 {[%clk 0:02:48]} 11. axb3 {[%clk 0:02:42.7]}
11... Bc7 {[%clk 0:02:46.7]} 12. b4 {[%clk 0:02:42.6]} 12... b6 {[%clk
0:02:31.5]} 13. b5 {[%clk 0:02:29.2]} 13... bxc5 {[%clk 0:02:25.2]} 14. bxc6
{[%clk 0:02:28.6]} 14... Nb8 {[%clk 0:02:18.7]} 15. Nb5 {[%clk 0:02:25.5]} 15...
Kd8 {[%clk 0:02:11.5]} 16. dxc5 {[%clk 0:02:03.2]} 16... Nxc6 {[%clk 0:01:56.3]}
17. Rd1 {[%clk 0:02:02.6]} 17... Bd7 {[%clk 0:01:48.4]} 18. Nb3 {[%clk
0:01:54.1]} 18... Be5 {[%clk 0:01:34.4]} 19. Bg5 {[%clk 0:01:28.1]} 19... Nb4
{[%clk 0:01:10.9]} 20. N3d4 {[%clk 0:00:38.9]} 20... a6 {[%clk 0:01:05.8]} 21.
Nd6 {[%clk 0:00:30.8]} 21... Ke7 {[%clk 0:00:49.3]} 22. N4f5+ {[%clk 0:00:26.4]}
22... Kf8 {[%clk 0:00:49.2]} 23. Ne3 {[%clk 0:00:25.2]} 23... Bc6 {[%clk
0:00:46]} 24. Bxf6 {[%clk 0:00:15]} 24... Bxf6 {[%clk 0:00:45.1]} 25. Rab1
{[%clk 0:00:15.3]} 25... Ke7 {[%clk 0:00:42.1]} 26. Nef5+ {[%clk 0:00:15.5]}
26... Ke6 {[%clk 0:00:36.3]} 27. Bh3 {[%clk 0:00:15.2]} 27... Ke5 {[%clk
0:00:27.1]} 28. f4+ {[%clk 0:00:15.2]} 28... exf3 {[%clk 0:00:27.1]} 29. exf3
{[%clk 0:00:13.3]} 29... d4 {[%clk 0:00:27.2]} 30. f4+ {[%clk 0:00:12.9]} 30...
Kd5 {[%clk 0:00:26.7]} 31. Rbc1 {[%clk 0:00:13.5]} 31... d3 {[%clk 0:00:26.3]}
32. Ne3+ {[%clk 0:00:10.7]} 32... Kd4 {[%clk 0:00:24.1]} 33. Ndf5+ {[%clk
0:00:11.1]} 33... Ke4 {[%clk 0:00:13.9]} 34. Bg2# {[%clk 0:00:12]} 1-0

[Event "Early-Titled-Tuesday-Blitz-November-28-2023"]
[Site "Chess.com"]
[Date "2023.11.28"]
[Round "2"]
[White "kingofthenil"]
[Black "ilushka"]
[Result "0-1"]
[WhiteElo "2692"]
[BlackElo "2403"]
[TimeControl "180+1"]
[EndTime "8:17:37 PST"]
[Termination "ilushka won by resignation"]

1. Nf3 {[%clk 0:02:42.7]} 1... d5 {[%clk 0:02:59.6]} 2. e3 {[%clk 0:02:42.2]}
2... g6 {[%clk 0:02:59.9]} 3. c4 {[%clk 0:02:35.3]} 3... c6 {[%clk 0:02:58]} 4.
Nc3 {[%clk 0:02:31.4]} 4... Bg7 {[%clk 0:02:49.5]} 5. b3 {[%clk 0:02:22.9]} 5...
Nf6 {[%clk 0:02:42.2]} 6. Bb2 {[%clk 0:02:21.9]} 6... O-O {[%clk 0:02:41.8]} 7.
Be2 {[%clk 0:02:21.7]} 7... Re8 {[%clk 0:02:38.1]} 8. d4 {[%clk 0:02:07.9]} 8...
Bf5 {[%clk 0:02:37.2]} 9. O-O {[%clk 0:02:02.1]} 9... Nbd7 {[%clk 0:02:36.2]}
10. Nh4 {[%clk 0:01:52.8]} 10... Ne4 {[%clk 0:02:20.8]} 11. Nxf5 {[%clk
0:01:50.7]} 11... gxf5 {[%clk 0:02:17.7]} 12. Bd3 {[%clk 0:01:43.3]} 12... e6
{[%clk 0:02:15.2]} 13. Ne2 {[%clk 0:01:42.6]} 13... Qh4 {[%clk 0:02:02.3]} 14.
g3 {[%clk 0:01:39.1]} 14... Qh6 {[%clk 0:01:58.1]} 15. Nf4 {[%clk 0:01:39.9]}
15... Ndf6 {[%clk 0:01:56]} 16. f3 {[%clk 0:01:09.8]} 16... Nd6 {[%clk
0:01:41.8]} 17. Kg2 {[%clk 0:00:31.2]} 17... Rad8 {[%clk 0:01:39]} 18. Rc1
{[%clk 0:00:30.4]} 18... dxc4 {[%clk 0:01:38.1]} 19. bxc4 {[%clk 0:00:31.3]}
19... c5 {[%clk 0:01:37.9]} 20. Qa4 {[%clk 0:00:28.6]} 20... cxd4 {[%clk
0:01:35.4]} 21. exd4 {[%clk 0:00:28.8]} 21... Nh5 {[%clk 0:01:13.5]} 22. Nxh5
{[%clk 0:00:23.5]} 22... Qxh5 {[%clk 0:01:13.3]} 23. Qxa7 {[%clk 0:00:07.5]}
23... Qh6 {[%clk 0:01:13]} 24. f4 {[%clk 0:00:07.6]} 24... Ne4 {[%clk
0:01:12.2]} 25. Bxe4 {[%clk 0:00:07.8]} 25... fxe4 {[%clk 0:01:12.2]} 26. Rcd1
{[%clk 0:00:04.4]} 26... Ra8 {[%clk 0:01:11.7]} 27. Qb6 {[%clk 0:00:04.3]} 27...
Rxa2 {[%clk 0:01:11.7]} 28. Qxb7 {[%clk 0:00:02.9]} 28... Qh5 {[%clk 0:01:05.5]}
29. Rd2 {[%clk 0:00:03.2]} 29... e3 {[%clk 0:01:04.2]} 30. Rc2 {[%clk
0:00:03.6]} 30... Qf5 {[%clk 0:01:00.8]} 31. Qb3 {[%clk 0:00:03.7]} 31... Qe4+
{[%clk 0:00:52]} 32. Kg1 {[%clk 0:00:03.7]} 32... Bxd4 {[%clk 0:00:39.6]} 33.
Qxa2 {[%clk 0:00:03.6]} 33... Qxc2 {[%clk 0:00:29.5]} 34. Rb1 {[%clk 0:00:01.7]}
34... e2+ {[%clk 0:00:25.8]} 35. Bxd4 {[%clk 0:00:02]} 35... Qxa2 {[%clk
0:00:25.5]} 36. Re1 {[%clk 0:00:02.1]} 0-1

[Event "Early-Titled-Tuesday-Blitz-November-28-2023"]
[Site "Chess.com"]
[Date "2023.11.28"]
[Round "2"]
[White "Pasmendjambvirgulptipon98"]
[Black "Actuary44"]
[Result "0-1"]
[WhiteElo "2166"]
[BlackElo "2457"]
[TimeControl "180+1"]
[EndTime "8:17:39 PST"]
[Termination "Actuary44 won by resignation"]

1. Nf3 {[%clk 0:03:00.9]} 1... d6 {[%clk 0:02:59.3]} 2. d4 {[%clk 0:02:56.9]}
2... Nf6 {[%clk 0:02:57.8]} 3. g3 {[%clk 0:02:55.6]} 3... g6 {[%clk 0:02:58.3]}
4. Bg2 {[%clk 0:02:55.2]} 4... Bg7 {[%clk 0:02:59]} 5. O-O {[%clk 0:02:55.9]}
5... O-O {[%clk 0:02:59.3]} 6. c4 {[%clk 0:02:56.7]} 6... Nfd7 {[%clk
0:02:59.8]} 7. Nc3 {[%clk 0:02:49.7]} 7... Nc6 {[%clk 0:03:00.3]} 8. e4 {[%clk
0:02:46.9]} 8... e5 {[%clk 0:03:00.3]} 9. Be3 {[%clk 0:02:42.5]} 9... h6 {[%clk
0:02:59.5]} 10. dxe5 {[%clk 0:02:35.1]} 10... Ndxe5 {[%clk 0:02:58.8]} 11. Nxe5
{[%clk 0:02:23.7]} 11... Nxe5 {[%clk 0:02:59.7]} 12. Qe2 {[%clk 0:02:21.9]}
12... Be6 {[%clk 0:02:47.9]} 13. b3 {[%clk 0:01:25]} 13... Nxc4 {[%clk
0:02:47.9]} 14. bxc4 {[%clk 0:01:25.3]} 14... Bxc3 {[%clk 0:02:48]} 15. Rac1
{[%clk 0:01:24.8]} 15... Bg7 {[%clk 0:02:47.3]} 16. f4 {[%clk 0:01:21.2]} 16...
f5 {[%clk 0:02:42]} 17. exf5 {[%clk 0:01:19.1]} 17... Bxf5 {[%clk 0:02:42.9]}
18. Bxb7 {[%clk 0:01:19.1]} 18... Bh3 {[%clk 0:02:30.1]} 19. Bxa8 {[%clk
0:01:04.8]} 19... Qxa8 {[%clk 0:02:31]} 20. Rf2 {[%clk 0:01:04.4]} 20... Re8
{[%clk 0:02:30.9]} 21. Qf3 {[%clk 0:00:52.3]} 21... Qxf3 {[%clk 0:02:15.5]} 22.
Rxf3 {[%clk 0:00:53.2]} 22... Bg4 {[%clk 0:02:14.8]} 23. Kf2 {[%clk 0:00:46.4]}
23... Rb8 {[%clk 0:02:05.3]} 24. Rc2 {[%clk 0:00:30]} 24... a5 {[%clk
0:01:50.5]} 25. Bd2 {[%clk 0:00:15.9]} 25... Bd4+ {[%clk 0:01:32]} 26. Kg2
{[%clk 0:00:12.9]} 26... Bf5 {[%clk 0:01:28.3]} 27. Rc1 {[%clk 0:00:10.7]} 27...
Rb2 {[%clk 0:01:27.2]} 28. Rd1 {[%clk 0:00:06.6]} 28... Be4 {[%clk 0:01:16.9]}
29. a4 {[%clk 0:00:03.5]} 29... Be3 {[%clk 0:00:56.8]} 30. g4 {[%clk 0:00:01.3]}
30... Rxd2+ {[%clk 0:00:51.7]} 31. Rxd2 {[%clk 0:00:01.5]} 31... Bxd2 {[%clk
0:00:52.6]} 32. Kg3 {[%clk 0:00:01.9]} 32... Bxf3 {[%clk 0:00:53.1]} 33. Kxf3
{[%clk 0:00:02.8]} 33... Kf7 {[%clk 0:00:52]} 34. Ke4 {[%clk 0:00:03.7]} 34...
Ke6 {[%clk 0:00:52.5]} 35. f5+ {[%clk 0:00:04.6]} 35... gxf5+ {[%clk 0:00:52.6]}
36. gxf5+ {[%clk 0:00:05.5]} 36... Kf6 {[%clk 0:00:53.3]} 37. Kd5 {[%clk
0:00:06]} 37... Kxf5 {[%clk 0:00:46.8]} 38. Kc6 {[%clk 0:00:06.9]} 38... Bf4
{[%clk 0:00:44.2]} 39. Kxc7 {[%clk 0:00:07.8]} 39... d5+ {[%clk 0:00:44.5]} 40.
Kc6 {[%clk 0:00:08.7]} 40... dxc4 {[%clk 0:00:45]} 41. Kb5 {[%clk 0:00:09.4]}
41... c3 {[%clk 0:00:45.2]} 42. Kxa5 {[%clk 0:00:10.3]} 42... c2 {[%clk
0:00:45.8]} 43. Kb4 {[%clk 0:00:11.2]} 43... c1=Q {[%clk 0:00:45.9]} 44. Kb3
{[%clk 0:00:12.1]} 44... Qc5 {[%clk 0:00:45.1]} 45. a5 {[%clk 0:00:13]} 45...
Qxa5 {[%clk 0:00:45.2]} 46. Kc2 {[%clk 0:00:13.4]} 46... Qb4 {[%clk 0:00:45.1]}
47. Kd3 {[%clk 0:00:13.7]} 47... Be5 {[%clk 0:00:43.6]} 48. Ke2 {[%clk
0:00:13.8]} 48... Qb2+ {[%clk 0:00:42.9]} 0-1

[Event "Early-Titled-Tuesday-Blitz-November-28-2023"]
[Site "Chess.com"]
[Date "2023.11.28"]
[Round "2"]
[White "jcmesafischer"]
[Black "Zavgorodniy_Sergiy"]
[Result "0-1"]
[WhiteElo "2315"]
[BlackElo "2685"]
[TimeControl "180+1"]
[EndTime "8:17:40 PST"]
[Termination "Zavgorodniy_Sergiy won on time"]

1. e4 {[%clk 0:03:00.9]} 1... e5 {[%clk 0:02:57.9]} 2. Nf3 {[%clk 0:03:00.7]}
2... d6 {[%clk 0:02:52.7]} 3. d4 {[%clk 0:02:59.8]} 3... exd4 {[%clk 0:02:53.6]}
4. Nxd4 {[%clk 0:03:00.3]} 4... Nf6 {[%clk 0:02:53.4]} 5. Nc3 {[%clk 0:03:00.5]}
5... Be7 {[%clk 0:02:54]} 6. g3 {[%clk 0:03:00.9]} 6... Bg4 {[%clk 0:02:52.8]}
7. f3 {[%clk 0:02:57.2]} 7... Bd7 {[%clk 0:02:52.1]} 8. Bg2 {[%clk 0:02:57.3]}
8... c5 {[%clk 0:02:52.6]} 9. Nde2 {[%clk 0:02:52.1]} 9... b5 {[%clk 0:02:52.1]}
10. O-O {[%clk 0:02:48.8]} 10... Bc6 {[%clk 0:02:51.9]} 11. Nf4 {[%clk
0:02:48.2]} 11... O-O {[%clk 0:02:51]} 12. Be3 {[%clk 0:02:45.7]} 12... Nbd7
{[%clk 0:02:51.2]} 13. a3 {[%clk 0:02:45]} 13... Nb6 {[%clk 0:02:50.1]} 14. b3
{[%clk 0:02:43]} 14... a5 {[%clk 0:02:47.9]} 15. Ncd5 {[%clk 0:02:39.4]} 15...
Nfxd5 {[%clk 0:02:38.9]} 16. Nxd5 {[%clk 0:02:35.7]} 16... Nxd5 {[%clk
0:02:26.2]} 17. exd5 {[%clk 0:02:36.6]} 17... Bd7 {[%clk 0:02:26.4]} 18. Qd2
{[%clk 0:02:29]} 18... Bf6 {[%clk 0:02:23]} 19. Rad1 {[%clk 0:02:23.2]} 19... a4
{[%clk 0:02:10.6]} 20. b4 {[%clk 0:02:22.7]} 20... cxb4 {[%clk 0:01:57]} 21.
Qxb4 {[%clk 0:02:23.6]} 21... Qc7 {[%clk 0:01:54.8]} 22. Bf4 {[%clk 0:01:56.4]}
22... Qc5+ {[%clk 0:01:54.6]} 23. Qxc5 {[%clk 0:01:53.3]} 23... dxc5 {[%clk
0:01:55.5]} 24. Bd6 {[%clk 0:01:17.2]} 24... Rfc8 {[%clk 0:01:54.1]} 25. f4
{[%clk 0:00:55.9]} 25... Ra6 {[%clk 0:01:50.8]} 26. Be5 {[%clk 0:00:54.5]} 26...
b4 {[%clk 0:01:46.3]} 27. d6 {[%clk 0:00:43.5]} 27... b3 {[%clk 0:01:18.4]} 28.
Bb7 {[%clk 0:00:32]} 28... Rac6 {[%clk 0:01:14.6]} 29. Bxc8 {[%clk 0:00:30.2]}
29... Rxc8 {[%clk 0:01:15.5]} 30. c3 {[%clk 0:00:19.5]} 30... Bd8 {[%clk
0:01:12.3]} 31. Rfe1 {[%clk 0:00:15.2]} 31... f6 {[%clk 0:01:10.9]} 32. Re4
{[%clk 0:00:08.3]} 32... fxe5 {[%clk 0:01:02.4]} 33. fxe5 {[%clk 0:00:09.2]}
33... Kf7 {[%clk 0:00:57.8]} 34. Rf1+ {[%clk 0:00:03]} 34... Ke6 {[%clk
0:00:57.7]} 35. Rg4 {[%clk 0:00:03.7]} 35... g6 {[%clk 0:00:56.3]} 36. Rgf4
{[%clk 0:00:03.5]} 36... Bg5 {[%clk 0:00:44.6]} 37. Rf7 {[%clk 0:00:03.2]} 37...
b2 {[%clk 0:00:38.9]} 38. h4 {[%clk 0:00:02.4]} 38... b1=Q {[%clk 0:00:28.5]}
0-1